[Event "Titled Tuesday Blitz May 31 Late 2022"]
[White "Sjugirov, Sanan"]
[Black "Christiansen, Johan-Sebastian"]
[WhiteFideId "4189302"]
[BlackFideId "1512668"]
[WhiteElo "2602"]
[BlackElo "2513"]
[Result "1-0"]
[Round "08"]
[TimeControl "180+1"]
[Date "2022.05.31"]
[WhiteClock "0:00:08"]
[BlackClock "0:00:08"]

1. e4 {[%clk 0:03:00]}  e5 {[%clk 0:02:59]} 2. Nf3 {[%clk 0:03:01]}  Nc6 {[%clk 0:02:59]} 3. Bb5 {[%clk 0:03:01]}  f5 {[%clk 0:03:00]} 4. d3 {[%clk 0:03:01]}  fxe4 {[%clk 0:02:59]} 5. dxe4 {[%clk 0:03:02]}  Nf6 {[%clk 0:03:00]} 6. O-O {[%clk 0:03:02]}  Bc5 {[%clk 0:02:59]} 7. Bxc6 {[%clk 0:03:01]}  bxc6 {[%clk 0:02:59]} 8. Nxe5 {[%clk 0:03:01]}  O-O {[%clk 0:02:59]} 9. Nc3 {[%clk 0:03:00]}  d6 {[%clk 0:02:59]} 10. Nd3 {[%clk 0:02:59]}  Bd4 {[%clk 0:02:42]} 11. Ne2 {[%clk 0:01:40]}  Bb6 {[%clk 0:02:40]} 12. Bg5 {[%clk 0:01:39]}  Qe8 {[%clk 0:02:36]} 13. Bxf6 {[%clk 0:01:37]}  Rxf6 {[%clk 0:02:37]} 14. Ng3 {[%clk 0:01:37]}  Ba6 {[%clk 0:02:27]} 15. Kh1 {[%clk 0:01:16]}  Qg6 {[%clk 0:01:51]} 16. Nf5 {[%clk 0:00:51]}  Re8 {[%clk 0:01:40]} 17. f3 {[%clk 0:00:48]}  d5 {[%clk 0:01:39]} 18. Re1 {[%clk 0:00:38]}  Qg5 {[%clk 0:01:01]} 19. Qc1 {[%clk 0:00:35]}  Qh5 {[%clk 0:00:47]} 20. Qd2 {[%clk 0:00:28]}  Qf7 {[%clk 0:00:23]} 21. Ng3 {[%clk 0:00:21]}  h5 {[%clk 0:00:15]} 22. exd5 {[%clk 0:00:16]}  cxd5 {[%clk 0:00:14]} 23. Rxe8+ {[%clk 0:00:16]}  Qxe8 {[%clk 0:00:15]} 24. Re1 {[%clk 0:00:17]}  Qa4 {[%clk 0:00:14]} 25. Nxh5 {[%clk 0:00:14]}  Rg6 {[%clk 0:00:14]} 26. Ndf4 {[%clk 0:00:11]}  Rh6 {[%clk 0:00:12]} 27. Qxd5+ {[%clk 0:00:11]}  Kh8 {[%clk 0:00:09]} 28. Qf7 {[%clk 0:00:08]}  Bb5 {[%clk 0:00:08]} 29. Qxg7# {[%clk 0:00:08]} 1-0


[Site "https://www.chess.com"]

[Event "Titled Tuesday Blitz May 31 Late 2022"]
[White "Sliwicki, Damian"]
[Black "Rastbod, Ali"]
[WhiteFideId "1127128"]
[BlackFideId "12567477"]
[WhiteElo "2125"]
[BlackElo "2147"]
[Result "0-1"]
[Round "08"]
[TimeControl "180+1"]
[Date "2022.06.01"]
[WhiteClock "0:00:39"]
[BlackClock "0:01:11"]

1. e4 {[%clk 0:03:00]}  e6 {[%clk 0:02:59]} 2. d4 {[%clk 0:02:50]}  d5 {[%clk 0:02:59]} 3. exd5 {[%clk 0:02:42]}  exd5 {[%clk 0:03:00]} 4. Nf3 {[%clk 0:02:42]}  Bd6 {[%clk 0:02:58]} 5. c4 {[%clk 0:02:42]}  Nf6 {[%clk 0:02:58]} 6. Nc3 {[%clk 0:02:40]}  O-O {[%clk 0:02:57]} 7. cxd5 {[%clk 0:02:31]}  Re8+ {[%clk 0:02:52]} 8. Be2 {[%clk 0:02:31]}  Nbd7 {[%clk 0:02:48]} 9. O-O {[%clk 0:02:30]}  Nb6 {[%clk 0:02:48]} 10. Bg5 {[%clk 0:02:30]}  Be7 {[%clk 0:02:32]} 11. Bb5 {[%clk 0:02:16]}  Bd7 {[%clk 0:02:23]} 12. Bxd7 {[%clk 0:02:15]}  Qxd7 {[%clk 0:02:24]} 13. Ne5 {[%clk 0:02:00]}  Qd8 {[%clk 0:02:23]} 14. Qf3 {[%clk 0:01:56]}  Nbxd5 {[%clk 0:01:56]} 15. Bxf6 {[%clk 0:01:43]}  Nxf6 {[%clk 0:01:53]} 16. Qxb7 {[%clk 0:01:44]}  Qxd4 {[%clk 0:01:54]} 17. Nc6 {[%clk 0:01:43]}  Qc5 {[%clk 0:01:43]} 18. Na4 {[%clk 0:01:15]}  Qd6 {[%clk 0:01:22]} 19. Rad1 {[%clk 0:01:14]}  Qe6 {[%clk 0:01:20]} 20. Rfe1 {[%clk 0:01:08]}  Ne4 {[%clk 0:01:20]} 21. Nc3 {[%clk 0:00:39]}  f5 {[%clk 0:01:11]} 0-1


[Site "https://www.chess.com"]

[Event "Titled Tuesday Blitz May 31 Late 2022"]
[White "Swiercz, Dariusz"]
[Black "Taboas Rodriguez, Daniel"]
[WhiteFideId "1126881"]
[BlackFideId "2208466"]
[WhiteElo "2627"]
[BlackElo "2429"]
[Result "1-0"]
[Round "08"]
[TimeControl "180+1"]
[Date "2022.05.31"]
[WhiteClock "0:00:21"]
[BlackClock "0:00:02"]

1. d4 {[%clk 0:03:00]}  Nf6 {[%clk 0:02:59]} 2. Nf3 {[%clk 0:03:01]}  g6 {[%clk 0:03:00]} 3. Bg5 {[%clk 0:03:02]}  Bg7 {[%clk 0:03:00]} 4. Nbd2 {[%clk 0:03:01]}  O-O {[%clk 0:03:00]} 5. e3 {[%clk 0:03:01]}  b6 {[%clk 0:02:59]} 6. Bd3 {[%clk 0:03:00]}  Bb7 {[%clk 0:03:00]} 7. O-O {[%clk 0:03:01]}  c5 {[%clk 0:03:00]} 8. c3 {[%clk 0:03:01]}  d6 {[%clk 0:02:55]} 9. Qe2 {[%clk 0:03:01]}  Nbd7 {[%clk 0:02:53]} 10. Ba6 {[%clk 0:03:01]}  Qc8 {[%clk 0:02:53]} 11. Bxb7 {[%clk 0:03:00]}  Qxb7 {[%clk 0:02:54]} 12. a4 {[%clk 0:03:01]}  Rfe8 {[%clk 0:02:37]} 13. Rfe1 {[%clk 0:03:01]}  Ne4 {[%clk 0:02:36]} 14. Nxe4 {[%clk 0:03:01]}  Qxe4 {[%clk 0:02:37]} 15. h3 {[%clk 0:03:00]}  Nf6 {[%clk 0:02:38]} 16. Bxf6 {[%clk 0:03:00]}  Bxf6 {[%clk 0:02:37]} 17. Qa6 {[%clk 0:03:01]}  Qc2 {[%clk 0:02:30]} 18. Re2 {[%clk 0:03:00]}  Qb3 {[%clk 0:02:28]} 19. Qb5 {[%clk 0:02:59]}  Qd5 {[%clk 0:02:22]} 20. e4 {[%clk 0:02:56]}  Qb7 {[%clk 0:02:22]} 21. e5 {[%clk 0:02:56]}  dxe5 {[%clk 0:02:16]} 22. dxe5 {[%clk 0:02:57]}  Bg7 {[%clk 0:02:14]} 23. e6 {[%clk 0:02:57]}  f5 {[%clk 0:02:12]} 24. Rd1 {[%clk 0:02:57]}  Red8 {[%clk 0:02:11]} 25. Red2 {[%clk 0:02:55]}  Rxd2 {[%clk 0:02:04]} 26. Rxd2 {[%clk 0:02:56]}  Bf6 {[%clk 0:02:04]} 27. Qc4 {[%clk 0:02:46]}  Qc6 {[%clk 0:01:58]} 28. Rd7 {[%clk 0:02:46]}  a6 {[%clk 0:01:58]} 29. Qd5 {[%clk 0:02:27]}  Qxd5 {[%clk 0:01:39]} 30. Rxd5 {[%clk 0:02:28]}  Rc8 {[%clk 0:01:39]} 31. g4 {[%clk 0:02:15]}  fxg4 {[%clk 0:01:37]} 32. hxg4 {[%clk 0:02:16]}  h6 {[%clk 0:01:35]} 33. Nd2 {[%clk 0:01:54]}  Rc6 {[%clk 0:01:32]} 34. Ne4 {[%clk 0:01:55]}  Rxe6 {[%clk 0:01:31]} 35. f3 {[%clk 0:01:56]}  Kf7 {[%clk 0:01:28]} 36. Kg2 {[%clk 0:01:45]}  Re5 {[%clk 0:01:20]} 37. Rd7 {[%clk 0:01:44]}  c4 {[%clk 0:01:03]} 38. Rb7 {[%clk 0:01:37]}  Ra5 {[%clk 0:00:55]} 39. Nd6+ {[%clk 0:01:32]}  Ke6 {[%clk 0:00:50]} 40. Nxc4 {[%clk 0:01:33]}  Rxa4 {[%clk 0:00:50]} 41. Rxb6+ {[%clk 0:01:33]}  Kd5 {[%clk 0:00:49]} 42. Rxf6 {[%clk 0:01:28]}  Kxc4 {[%clk 0:00:40]} 43. Rxg6 {[%clk 0:01:28]}  Ra2 {[%clk 0:00:40]} 44. Kg3 {[%clk 0:01:27]}  a5 {[%clk 0:00:40]} 45. Rb6 {[%clk 0:01:20]}  e5 {[%clk 0:00:36]} 46. Rb8 {[%clk 0:00:52]}  Kd3 {[%clk 0:00:30]} 47. Rb5 {[%clk 0:00:52]}  a4 {[%clk 0:00:28]} 48. Rb4 {[%clk 0:00:47]}  Ke3 {[%clk 0:00:14]} 49. Re4+ {[%clk 0:00:41]}  Kd3 {[%clk 0:00:14]} 50. Kh4 {[%clk 0:00:39]}  Rxb2 {[%clk 0:00:11]} 51. Rxa4 {[%clk 0:00:39]}  Kxc3 {[%clk 0:00:12]} 52. Re4 {[%clk 0:00:37]}  Rb5 {[%clk 0:00:09]} 53. Kh5 {[%clk 0:00:37]}  Rb6 {[%clk 0:00:06]} 54. Rxe5 {[%clk 0:00:36]}  Rf6 {[%clk 0:00:06]} 55. Rf5 {[%clk 0:00:28]}  Re6 {[%clk 0:00:07]} 56. f4 {[%clk 0:00:26]}  Kd4 {[%clk 0:00:07]} 57. Re5 {[%clk 0:00:26]}  Rf6 {[%clk 0:00:05]} 58. Rf5 {[%clk 0:00:26]}  Re6 {[%clk 0:00:04]} 59. Rf8 {[%clk 0:00:25]}  Ke4 {[%clk 0:00:03]} 60. f5 {[%clk 0:00:24]}  Ra6 {[%clk 0:00:02]} 61. Re8+ {[%clk 0:00:20]}  Kf4 {[%clk 0:00:02]} 62. Re6 {[%clk 0:00:21]} 1-0


[Site "https://www.chess.com"]

[Event "Titled Tuesday Blitz May 31 Late 2022"]
[White "Tristan, Leonardo"]
[Black "Ambartsumova, Karina"]
[WhiteFideId "113816"]
[BlackFideId "4166299"]
[WhiteElo "2404"]
[BlackElo "2262"]
[Result "1-0"]
[Round "08"]
[TimeControl "180+1"]
[Date "2022.05.31"]
[WhiteClock "0:00:43"]
[BlackClock "0:00:04"]

1. d4 {[%clk 0:03:00]}  Nf6 {[%clk 0:02:59]} 2. Nf3 {[%clk 0:03:01]}  g6 {[%clk 0:02:59]} 3. Bf4 {[%clk 0:03:01]}  Bg7 {[%clk 0:03:00]} 4. e3 {[%clk 0:03:02]}  O-O {[%clk 0:03:00]} 5. Be2 {[%clk 0:03:02]}  d6 {[%clk 0:03:01]} 6. O-O {[%clk 0:03:03]}  Nc6 {[%clk 0:03:01]} 7. c3 {[%clk 0:03:02]}  Nd7 {[%clk 0:03:02]} 8. e4 {[%clk 0:03:03]}  e5 {[%clk 0:03:01]} 9. Bg5 {[%clk 0:03:03]}  f6 {[%clk 0:03:00]} 10. Be3 {[%clk 0:03:03]}  f5 {[%clk 0:02:54]} 11. Bg5 {[%clk 0:03:03]}  Qe8 {[%clk 0:02:52]} 12. exf5 {[%clk 0:02:47]}  gxf5 {[%clk 0:02:52]} 13. Re1 {[%clk 0:02:38]}  Qg6 {[%clk 0:02:48]} 14. Qd2 {[%clk 0:02:30]}  h6 {[%clk 0:02:38]} 15. dxe5 {[%clk 0:02:01]}  dxe5 {[%clk 0:02:07]} 16. Bh4 {[%clk 0:01:49]}  e4 {[%clk 0:01:52]} 17. Nd4 {[%clk 0:01:48]}  Nde5 {[%clk 0:01:47]} 18. Nxc6 {[%clk 0:01:48]}  bxc6 {[%clk 0:01:47]} 19. Bg3 {[%clk 0:01:43]}  Be6 {[%clk 0:01:17]} 20. Qf4 {[%clk 0:01:43]}  Rad8 {[%clk 0:01:12]} 21. Nd2 {[%clk 0:01:36]}  Qf7 {[%clk 0:00:56]} 22. Nf1 {[%clk 0:01:31]}  Ng6 {[%clk 0:00:55]} 23. Bh5 {[%clk 0:01:31]}  Nxf4 {[%clk 0:00:42]} 24. Bxf7+ {[%clk 0:01:32]}  Rxf7 {[%clk 0:00:42]} 25. Bxf4 {[%clk 0:01:33]}  Rfd7 {[%clk 0:00:43]} 26. Ne3 {[%clk 0:01:12]}  Kf7 {[%clk 0:00:43]} 27. h3 {[%clk 0:01:11]}  Rd2 {[%clk 0:00:41]} 28. Rad1 {[%clk 0:00:57]}  Rxd1 {[%clk 0:00:39]} 29. Rxd1 {[%clk 0:00:57]}  Rxd1+ {[%clk 0:00:39]} 30. Nxd1 {[%clk 0:00:58]}  Bxa2 {[%clk 0:00:38]} 31. Bxc7 {[%clk 0:00:57]}  Ke6 {[%clk 0:00:36]} 32. Kf1 {[%clk 0:00:57]}  Bb3 {[%clk 0:00:31]} 33. Ne3 {[%clk 0:00:51]}  Be5 {[%clk 0:00:23]} 34. Bxe5 {[%clk 0:00:48]}  Kxe5 {[%clk 0:00:24]} 35. Ke2 {[%clk 0:00:49]}  f4 {[%clk 0:00:16]} 36. Ng4+ {[%clk 0:00:49]}  Kf5 {[%clk 0:00:07]} 37. Nxh6+ {[%clk 0:00:50]}  Kg5 {[%clk 0:00:07]} 38. Ng4 {[%clk 0:00:50]}  Bc4+ {[%clk 0:00:08]} 39. Kd2 {[%clk 0:00:50]}  Bf1 {[%clk 0:00:07]} 40. Ne5 {[%clk 0:00:46]}  Bxg2 {[%clk 0:00:07]} 41. Nxc6 {[%clk 0:00:46]}  Bxh3 {[%clk 0:00:06]} 42. Nxa7 {[%clk 0:00:46]}  Kg4 {[%clk 0:00:05]} 43. Nb5 {[%clk 0:00:42]}  Kf3 {[%clk 0:00:05]} 44. Ke1 {[%clk 0:00:42]}  Be6 {[%clk 0:00:03]} 45. Nd4+ {[%clk 0:00:42]}  Kg2 {[%clk 0:00:03]} 46. Nxe6 {[%clk 0:00:42]}  e3 {[%clk 0:00:04]} 47. Nxf4+ {[%clk 0:00:42]}  Kf3 {[%clk 0:00:04]} 48. fxe3 {[%clk 0:00:43]} 1-0


[Site "https://www.chess.com"]

[Event "Titled Tuesday Blitz May 31 Late 2022"]
[White "Trost, Edvin"]
[Black "Shirov, Alexei"]
[WhiteFideId "1729519"]
[BlackFideId "2209390"]
[WhiteElo "2165"]
[BlackElo "2678"]
[Result "1/2-1/2"]
[Round "08"]
[TimeControl "180+1"]
[Date "2022.05.31"]
[WhiteClock "0:01:43"]
[BlackClock "0:01:36"]

1. d4 {[%clk 0:03:00]}  d5 {[%clk 0:03:00]} 2. Nf3 {[%clk 0:03:01]}  Nf6 {[%clk 0:02:58]} 3. c4 {[%clk 0:03:01]}  c6 {[%clk 0:02:58]} 4. g3 {[%clk 0:02:56]}  dxc4 {[%clk 0:02:52]} 5. Bg2 {[%clk 0:02:56]}  g6 {[%clk 0:02:53]} 6. O-O {[%clk 0:02:56]}  Bg7 {[%clk 0:02:53]} 7. a4 {[%clk 0:02:56]}  a5 {[%clk 0:02:28]} 8. Na3 {[%clk 0:02:54]}  Be6 {[%clk 0:02:24]} 9. Ne5 {[%clk 0:02:50]}  Bd5 {[%clk 0:02:20]} 10. Naxc4 {[%clk 0:02:41]}  Bxg2 {[%clk 0:02:19]} 11. Kxg2 {[%clk 0:02:42]}  Nbd7 {[%clk 0:02:16]} 12. Nxd7 {[%clk 0:02:39]}  Nxd7 {[%clk 0:02:15]} 13. e3 {[%clk 0:02:27]}  b5 {[%clk 0:02:12]} 14. Nd2 {[%clk 0:02:24]}  Nb6 {[%clk 0:02:09]} 15. b3 {[%clk 0:02:22]}  c5 {[%clk 0:02:04]} 16. Bb2 {[%clk 0:02:02]}  cxd4 {[%clk 0:02:02]} 17. Nf3 {[%clk 0:02:02]}  bxa4 {[%clk 0:01:58]} 18. bxa4 {[%clk 0:02:01]}  O-O {[%clk 0:01:53]} 19. Bxd4 {[%clk 0:02:00]}  Bxd4 {[%clk 0:01:51]} 20. Qxd4 {[%clk 0:02:01]}  Qxd4 {[%clk 0:01:46]} 21. Nxd4 {[%clk 0:02:02]}  Rfc8 {[%clk 0:01:45]} 22. Rfb1 {[%clk 0:02:00]}  Ra6 {[%clk 0:01:44]} 23. Rb5 {[%clk 0:01:42]}  Rc4 {[%clk 0:01:43]} 24. Nb3 {[%clk 0:01:41]}  Rxa4 {[%clk 0:01:39]} 25. Rxa4 {[%clk 0:01:41]}  Nxa4 {[%clk 0:01:38]} 26. Rxa5 {[%clk 0:01:42]}  Rxa5 {[%clk 0:01:37]} 27. Nxa5 {[%clk 0:01:43]}  Nc5 {[%clk 0:01:36]} 28. Nc6 {[%clk 0:01:43]}  Kf8 {[%clk 0:01:36]} 1/2-1/2


[Site "https://www.chess.com"]

[Event "Titled Tuesday Blitz May 31 Late 2022"]
[White "Zhigalko, Sergei"]
[Black "Wieczorek, Oskar"]
[WhiteFideId "13502956"]
[BlackFideId "1133950"]
[WhiteElo "2662"]
[BlackElo "2330"]
[Result "1-0"]
[Round "08"]
[TimeControl "180+1"]
[Date "2022.05.31"]
[WhiteClock "0:00:15"]
[BlackClock "0:00:02"]

1. e4 {[%clk 0:03:00]}  c5 {[%clk 0:02:59]} 2. Nf3 {[%clk 0:03:00]}  e6 {[%clk 0:02:59]} 3. c3 {[%clk 0:03:00]}  d5 {[%clk 0:02:59]} 4. e5 {[%clk 0:03:00]}  d4 {[%clk 0:02:52]} 5. Bd3 {[%clk 0:03:00]}  Nc6 {[%clk 0:02:42]} 6. O-O {[%clk 0:02:57]}  Nge7 {[%clk 0:02:43]} 7. Re1 {[%clk 0:02:56]}  Ng6 {[%clk 0:02:43]} 8. g3 {[%clk 0:02:55]}  Qc7 {[%clk 0:02:34]} 9. Qe2 {[%clk 0:02:55]}  b6 {[%clk 0:02:22]} 10. Be4 {[%clk 0:02:47]}  Bb7 {[%clk 0:02:22]} 11. d3 {[%clk 0:02:47]}  O-O-O {[%clk 0:01:53]} 12. Na3 {[%clk 0:02:27]}  a6 {[%clk 0:01:49]} 13. Bd2 {[%clk 0:02:11]}  Kb8 {[%clk 0:01:39]} 14. Rac1 {[%clk 0:01:56]}  f5 {[%clk 0:01:39]} 15. exf6 {[%clk 0:01:40]}  gxf6 {[%clk 0:01:40]} 16. Bxg6 {[%clk 0:01:29]}  hxg6 {[%clk 0:01:36]} 17. Qxe6 {[%clk 0:01:29]}  Bd6 {[%clk 0:00:57]} 18. Nc4 {[%clk 0:01:24]}  b5 {[%clk 0:00:38]} 19. Nxd6 {[%clk 0:01:23]}  Rxd6 {[%clk 0:00:38]} 20. Bf4 {[%clk 0:01:20]}  Ne5 {[%clk 0:00:29]} 21. Rxe5 {[%clk 0:00:30]}  fxe5 {[%clk 0:00:17]} 22. Qxe5 {[%clk 0:00:29]}  Rhd8 {[%clk 0:00:08]} 23. cxd4 {[%clk 0:00:29]}  Qc6 {[%clk 0:00:04]} 24. Qe4 {[%clk 0:00:19]}  Qxe4 {[%clk 0:00:04]} 25. dxe4 {[%clk 0:00:20]}  Bxe4 {[%clk 0:00:05]} 26. Ng5 {[%clk 0:00:15]}  Bf5 {[%clk 0:00:02]} 27. dxc5 {[%clk 0:00:15]} 1-0


[Site "https://www.chess.com"]

[Event "Titled Tuesday Blitz May 31 Late 2022"]
[White "Ambartsumova, Karina"]
[Black "Ladan, Nicholas"]
[WhiteFideId "4166299"]
[BlackFideId "30918855"]
[WhiteElo "2262"]
[BlackElo "2167"]
[Result "1-0"]
[Round "09"]
[TimeControl "180+1"]
[Date "2022.06.01"]
[WhiteClock "0:00:22"]
[BlackClock "0:00:11"]

1. d4 {[%clk 0:03:00]}  d5 {[%clk 0:03:00]} 2. c4 {[%clk 0:03:00]}  c6 {[%clk 0:03:00]} 3. Nf3 {[%clk 0:03:00]}  Nf6 {[%clk 0:03:00]} 4. g3 {[%clk 0:03:00]}  Bf5 {[%clk 0:02:58]} 5. Qb3 {[%clk 0:03:00]}  Qb6 {[%clk 0:02:56]} 6. Nc3 {[%clk 0:03:00]}  e6 {[%clk 0:02:42]} 7. c5 {[%clk 0:03:00]}  Qxb3 {[%clk 0:02:40]} 8. axb3 {[%clk 0:03:01]}  Na6 {[%clk 0:02:36]} 9. Bf4 {[%clk 0:03:01]}  Nb4 {[%clk 0:02:28]} 10. Ra4 {[%clk 0:02:58]}  a5 {[%clk 0:02:26]} 11. Bc7 {[%clk 0:02:51]}  Bc2 {[%clk 0:02:12]} 12. Bxa5 {[%clk 0:02:33]}  Na6 {[%clk 0:02:02]} 13. Ra3 {[%clk 0:02:33]}  Nd7 {[%clk 0:01:51]} 14. Kd2 {[%clk 0:02:26]}  Bg6 {[%clk 0:01:49]} 15. e3 {[%clk 0:02:23]}  e5 {[%clk 0:01:48]} 16. b4 {[%clk 0:02:16]}  e4 {[%clk 0:01:39]} 17. Ne1 {[%clk 0:02:14]}  Be7 {[%clk 0:01:27]} 18. Nc2 {[%clk 0:02:13]}  O-O {[%clk 0:01:26]} 19. b5 {[%clk 0:02:13]}  Nab8 {[%clk 0:01:25]} 20. b6 {[%clk 0:01:53]}  Nf6 {[%clk 0:01:07]} 21. Be2 {[%clk 0:01:51]}  Bh5 {[%clk 0:01:02]} 22. Bxh5 {[%clk 0:01:48]}  Nxh5 {[%clk 0:01:03]} 23. Rha1 {[%clk 0:01:48]}  f5 {[%clk 0:01:00]} 24. Bb4 {[%clk 0:01:41]}  Na6 {[%clk 0:00:57]} 25. Ra5 {[%clk 0:01:30]}  g5 {[%clk 0:00:55]} 26. Ne2 {[%clk 0:01:25]}  f4 {[%clk 0:00:54]} 27. gxf4 {[%clk 0:01:26]}  gxf4 {[%clk 0:00:54]} 28. Rg1+ {[%clk 0:01:21]}  Kh8 {[%clk 0:00:53]} 29. Bc3 {[%clk 0:01:12]}  Bh4 {[%clk 0:00:49]} 30. Rg4 {[%clk 0:01:02]}  Bxf2 {[%clk 0:00:46]} 31. exf4 {[%clk 0:01:01]}  Rae8 {[%clk 0:00:31]} 32. Ne3 {[%clk 0:01:01]}  Ng7 {[%clk 0:00:28]} 33. Ra1 {[%clk 0:00:51]}  Bxe3+ {[%clk 0:00:24]} 34. Kxe3 {[%clk 0:00:52]}  Nf5+ {[%clk 0:00:25]} 35. Kd2 {[%clk 0:00:53]}  Rg8 {[%clk 0:00:19]} 36. Rag1 {[%clk 0:00:52]}  Rxg4 {[%clk 0:00:18]} 37. Rxg4 {[%clk 0:00:53]}  Rg8 {[%clk 0:00:18]} 38. Rxg8+ {[%clk 0:00:48]}  Kxg8 {[%clk 0:00:19]} 39. Ng3 {[%clk 0:00:48]}  Nxg3 {[%clk 0:00:18]} 40. hxg3 {[%clk 0:00:49]}  h5 {[%clk 0:00:19]} 41. Ke3 {[%clk 0:00:48]}  Kf7 {[%clk 0:00:19]} 42. f5 {[%clk 0:00:46]}  Kf6 {[%clk 0:00:18]} 43. Kf4 {[%clk 0:00:46]}  Nb8 {[%clk 0:00:18]} 44. Be1 {[%clk 0:00:46]}  Nd7 {[%clk 0:00:14]} 45. g4 {[%clk 0:00:46]}  hxg4 {[%clk 0:00:14]} 46. Bh4+ {[%clk 0:00:47]}  Kf7 {[%clk 0:00:14]} 47. Kxg4 {[%clk 0:00:47]}  Nb8 {[%clk 0:00:08]} 48. Kf4 {[%clk 0:00:47]}  Na6 {[%clk 0:00:08]} 49. Be1 {[%clk 0:00:39]}  Kf6 {[%clk 0:00:07]} 50. b3 {[%clk 0:00:37]}  Nb8 {[%clk 0:00:07]} 51. Bh4+ {[%clk 0:00:37]}  Kf7 {[%clk 0:00:07]} 52. Ke5 {[%clk 0:00:37]}  Na6 {[%clk 0:00:03]} 53. Be1 {[%clk 0:00:35]}  e3 {[%clk 0:00:03]} 54. Kf4 {[%clk 0:00:34]}  e2 {[%clk 0:00:03]} 55. Ke5 {[%clk 0:00:25]}  Nb8 {[%clk 0:00:03]} 56. Kd6 {[%clk 0:00:25]}  Na6 {[%clk 0:00:02]} 57. Kd7 {[%clk 0:00:25]}  Kf6 {[%clk 0:00:02]} 58. Kc8 {[%clk 0:00:25]}  Kxf5 {[%clk 0:00:03]} 59. Kxb7 {[%clk 0:00:25]}  Nxc5+ {[%clk 0:00:04]} 60. dxc5 {[%clk 0:00:25]}  d4 {[%clk 0:00:04]} 61. Kxc6 {[%clk 0:00:25]}  Ke4 {[%clk 0:00:05]} 62. b7 {[%clk 0:00:25]}  d3 {[%clk 0:00:06]} 63. b8=Q {[%clk 0:00:25]}  Ke3 {[%clk 0:00:07]} 64. Qe8+ {[%clk 0:00:25]}  Kf3 {[%clk 0:00:07]} 65. Bd2 {[%clk 0:00:24]}  Kg2 {[%clk 0:00:07]} 66. Qe3 {[%clk 0:00:24]}  Kf1 {[%clk 0:00:08]} 67. Qxd3 {[%clk 0:00:24]}  Kg1 {[%clk 0:00:08]} 68. Qxe2 {[%clk 0:00:23]}  Kh1 {[%clk 0:00:09]} 69. Bf4 {[%clk 0:00:22]}  Kg1 {[%clk 0:00:10]} 70. Be5 {[%clk 0:00:22]}  Kh1 {[%clk 0:00:11]} 71. Qh2# {[%clk 0:00:22]} 1-0


[Site "https://www.chess.com"]

[Event "Titled Tuesday Blitz May 31 Late 2022"]
[White "Barria Zuniga, Daniel"]
[Black "Derraugh, Geordie"]
[WhiteFideId "3400816"]
[BlackFideId "2603950"]
[WhiteElo "2414"]
[BlackElo "2116"]
[Result "1/2-1/2"]
[Round "09"]
[TimeControl "180+1"]
[Date "2022.06.01"]
[WhiteClock "0:00:03"]
[BlackClock "0:00:03"]

1. d4 {[%clk 0:03:00]}  Nf6 {[%clk 0:02:53]} 2. c4 {[%clk 0:02:58]}  g6 {[%clk 0:02:52]} 3. Nc3 {[%clk 0:02:58]}  d5 {[%clk 0:02:53]} 4. Bf4 {[%clk 0:02:57]}  Bg7 {[%clk 0:02:53]} 5. e3 {[%clk 0:02:58]}  O-O {[%clk 0:02:52]} 6. Rc1 {[%clk 0:02:58]}  c6 {[%clk 0:02:53]} 7. h3 {[%clk 0:02:58]}  Qa5 {[%clk 0:02:48]} 8. Nf3 {[%clk 0:02:48]}  Ne4 {[%clk 0:02:44]} 9. Qb3 {[%clk 0:02:36]}  Nxc3 {[%clk 0:02:35]} 10. Qxc3 {[%clk 0:02:28]}  Qxa2 {[%clk 0:01:43]} 11. b4 {[%clk 0:02:15]}  Bf5 {[%clk 0:01:22]} 12. Nd2 {[%clk 0:02:02]}  a5 {[%clk 0:01:13]} 13. g4 {[%clk 0:01:50]}  axb4 {[%clk 0:01:09]} 14. Qxb4 {[%clk 0:01:48]}  Bc8 {[%clk 0:01:08]} 15. Bd3 {[%clk 0:01:39]}  Qa3 {[%clk 0:01:04]} 16. Qxa3 {[%clk 0:01:31]}  Rxa3 {[%clk 0:01:04]} 17. Ke2 {[%clk 0:01:32]}  Na6 {[%clk 0:00:54]} 18. Ra1 {[%clk 0:01:29]}  Rxa1 {[%clk 0:00:51]} 19. Rxa1 {[%clk 0:01:30]}  c5 {[%clk 0:00:50]} 20. cxd5 {[%clk 0:01:22]}  cxd4 {[%clk 0:00:50]} 21. e4 {[%clk 0:01:19]}  e5 {[%clk 0:00:32]} 22. Bg3 {[%clk 0:01:09]}  f5 {[%clk 0:00:22]} 23. f3 {[%clk 0:01:05]}  h5 {[%clk 0:00:18]} 24. gxh5 {[%clk 0:00:29]}  gxh5 {[%clk 0:00:18]} 25. Nc4 {[%clk 0:00:29]}  fxe4 {[%clk 0:00:17]} 26. Bxe4 {[%clk 0:00:28]}  Bxh3 {[%clk 0:00:15]} 27. Bxe5 {[%clk 0:00:27]}  Nc5 {[%clk 0:00:14]} 28. Rg1 {[%clk 0:00:25]}  Rf7 {[%clk 0:00:13]} 29. d6 {[%clk 0:00:25]}  Kh8 {[%clk 0:00:09]} 30. Bd5 {[%clk 0:00:21]}  Rd7 {[%clk 0:00:06]} 31. Rxg7 {[%clk 0:00:19]}  Rxg7 {[%clk 0:00:07]} 32. Bxd4 {[%clk 0:00:19]}  Nd7 {[%clk 0:00:06]} 33. Bxb7 {[%clk 0:00:15]}  Kh7 {[%clk 0:00:06]} 34. Bxg7 {[%clk 0:00:15]}  Kxg7 {[%clk 0:00:07]} 35. Ke3 {[%clk 0:00:14]}  Kf6 {[%clk 0:00:07]} 36. Kd4 {[%clk 0:00:14]}  Ke6 {[%clk 0:00:07]} 37. Bc8 {[%clk 0:00:13]}  Bf1 {[%clk 0:00:05]} 38. Nb6 {[%clk 0:00:11]}  Bb5 {[%clk 0:00:04]} 39. Nxd7 {[%clk 0:00:04]}  Bxd7 {[%clk 0:00:03]} 40. Bb7 {[%clk 0:00:04]}  Kxd6 {[%clk 0:00:03]} 41. f4 {[%clk 0:00:04]}  Ke6 {[%clk 0:00:03]} 42. Bf3 {[%clk 0:00:03]}  Kf5 {[%clk 0:00:02]} 43. Bxh5 {[%clk 0:00:03]}  Kxf4 {[%clk 0:00:03]} 1/2-1/2


[Site "https://www.chess.com"]